bitfinex-derivatives/quotes_BNBF0:USTF0_20250221
["timestamp","ask_amount","ask_price","bid_price","bid_amount"]
[1740120984223,0.30521303,655.28,654.26,2.13562291]
[1740120984427,0.30521303,655.28,654.27,5.11508943]
[1740120984624,0.30521303,655.28,654.28,2.13562291]
[1740120984832,0.30521303,655.28,654.29,2.13562291]
[1740120985025,0.30521303,655.28,654.3,2.13562291]
[1740120985225,0.30521303,655.28,654.31,2.13562291]
[1740120985426,0.30521303,655.28,654.27,2.97946652]
[1740120985629,0.30521303,655.28,654.28,5.11515423]
[1740120985832,0.30521303,655.28,654.29,2.13568771]
[1740120986024,0.30521303,655.28,654.3,2.13568771]
[1740120986225,0.30521303,655.28,654.28,2.97946652]
[1740120987632,0.30521303,655.28,654.29,2.97946652]
[1740120988032,0.30521303,655.28,654.3,2.13551162]
[1740120988331,0.30521303,655.28,654.31,2.13551162]
[1740120988532,0.30521303,655.28,654.32,2.13551162]
[1740120988724,0.30521303,655.28,654.33,2.13551162]
[1740120988929,0.30521303,655.28,654.34,2.13551162]
[1740120989131,0.30521303,655.28,654.35,2.13551162]
[1740120989329,0.30521303,655.28,654.36,2.13551162]
[1740120989533,0.30521303,655.28,654.37,2.13551162]
[1740120989726,0.30521303,655.28,654.38,2.13551162]
[1740120989931,0.30521303,655.28,654.39,2.13551162]
[1740120990128,0.30521303,655.28,654.4,2.13551162]
[1740120990427,0.30521303,655.28,654.41,2.13551162]
[1740120990628,0.30521303,655.28,654.42,2.13551162]
[1740120990828,0.30521303,655.28,654.43,5.11497814]
[1740120991133,0.30521303,655.28,654.44,2.13551162]
[1740120991334,0.30521303,655.28,654.45,2.13551162]
[1740120991534,0.30521303,655.28,654.46,2.13551162]
[1740120991736,0.30521303,655.28,654.47,2.13551162]
[1740120992035,0.30521303,655.28,654.48,5.11497814]
[1740120992234,0.30521303,655.28,654.48,2.97946652]
[1740120992431,0.30521303,655.28,654.49,2.13585997]
[1740120992634,0.30521303,655.28,654.48,2.97946652]
[1740120992835,0.30521303,655.28,654.49,2.13587863]
[1740120993135,0.30521303,655.28,654.5,2.97946652]
[1740120994836,0.30521303,655.28,654.51,2.97946652]
[1740120995939,0.30521303,655.28,654.23,1.13987848]
[1740120996237,0.30521303,655.28,654.24,2.13579385]
[1740120996438,0.30521303,655.28,654.25,5.11590723]
[1740120996640,0.30521303,655.28,654.26,2.13579385]
[1740120996837,0.30521303,655.28,654.27,2.13579385]
[1740120997139,0.30521303,655.28,654.28,2.13579385]
[1740120997339,0.30521303,655.28,654.29,2.13579385]
[1740120997540,0.30521303,655.28,654.3,2.13579385]
[1740120997738,0.30521303,655.28,654.31,2.13579385]
[1740120998034,0.30521303,655.28,654.32,2.13579385]
[1740120998240,0.30521303,655.28,654.33,2.13579385]
[1740120998538,0.30521303,655.28,654.32,2.98011338]
[1740120999138,0.30521303,655.28,654.2,1.13987848]
[1740121000633,0.30521303,655.28,654.04,1.13987848]
[1740121000833,0.30521303,655.28,654.05,2.13543791]
[1740121001033,0.30521303,655.28,654.06,2.13543791]
[1740121001233,0.30521303,655.28,654.07,2.13543791]
[1740121001433,0.30521303,655.28,654.08,2.13543791]
[1740121001739,0.30521303,655.28,654.09,2.13543791]
[1740121001934,0.30521303,655.28,654.1,2.13543791]
[1740121002237,0.30521303,655.28,654.11,2.13543791]
[1740121002433,0.30521303,655.28,654.06,2.97950309]
[1740121002434,0.30521303,655.28,654.12,2.13543791]
[1740121002638,0.30521303,655.28,654.12,2.97950309]
[1740121003740,0.30521303,655.28,654.13,2.134058]
[1740121004038,0.30521303,655.28,654.12,2.97950309]
[1740121004635,0.30521303,655.28,654.13,2.97950309]
[1740121004835,0.30521303,655.28,654.14,2.13387674]
[1740121005035,0.30521303,655.28,654.15,2.13387674]
[1740121005235,0.30521303,655.28,654.16,2.13387674]
[1740121005434,0.30521303,655.28,654.17,2.13387674]
[1740121005739,0.30521303,655.28,654.18,2.13387674]
[1740121005934,0.30521303,655.28,654.19,5.11337983]
[1740121006136,0.30521303,655.28,654.2,2.13387674]
[1740121006339,0.30521303,655.28,654.21,2.13387674]
[1740121006541,0.30521303,655.28,654.19,2.97950309]
[1740121007540,1.407,655.27,654.19,2.97950309]
[1740121007734,0.30522235,655.26,654.19,2.97950309]
[1740121008245,0.30522235,655.26,653.94,1.13987848]
[1740121009441,0.30522235,655.26,653.75,1.13987848]
[1740121011739,0.30522235,655.26,653.74,1.13987848]
[1740121011937,0.30522235,655.26,653.75,2.97599455]
[1740121013634,0.30522235,655.26,653.74,1.13987848]
[1740121015242,0.30522235,655.26,653.75,2.97582588]
[1740121016445,0.30522235,655.26,653.78,1.13987848]
[1740121016644,0.30522235,655.26,653.79,2.1326592]
[1740121016942,0.30522235,655.26,653.8,2.1326592]
[1740121017144,0.30522235,655.26,653.81,2.1326592]
[1740121017443,0.30522235,655.26,653.82,2.1326592]
[1740121017643,0.30522235,655.26,653.83,2.1326592]
[1740121017843,0.30522235,655.26,653.84,2.1326592]
[1740121018039,0.30522235,655.26,653.85,2.1326592]
[1740121018240,0.30522235,655.26,653.86,2.1326592]
[1740121018445,0.30522235,655.26,653.87,2.1326592]
[1740121018643,0.30522235,655.26,653.88,2.1326592]
[1740121018839,0.30522235,655.26,653.89,5.10848508]
[1740121019043,0.30522235,655.26,653.9,2.1326592]
[1740121019243,0.30522235,655.26,653.91,2.1326592]
[1740121019445,0.30522235,655.26,653.92,2.1326592]
[1740121019645,0.30522235,655.26,653.93,2.1326592]
[1740121019846,0.30522235,655.26,653.94,2.1326592]
[1740121020047,0.30522235,655.26,653.96,1.13987848]
[1740121020248,0.30522235,655.26,653.97,2.1326592]
[1740121020550,0.30522235,655.26,653.98,2.1326592]
[1740121020742,0.30522235,655.26,653.99,2.1326592]
[1740121020945,0.30522235,655.26,654.0,2.1326592]
[1740121021140,0.30522235,655.26,654.01,2.1326592]
[1740121021345,0.30522235,655.26,653.97,2.97582588]
[1740121021346,0.30522235,655.26,654.02,2.1326592]
[1740121021647,0.30522235,655.26,654.03,2.1326592]
[1740121021841,0.30522235,655.26,654.04,2.1326592]
[1740121022045,0.30522235,655.26,654.05,5.10848508]
[1740121022245,0.30522235,655.26,654.06,2.1326592]
[1740121022443,0.30522235,655.26,654.07,2.1326592]
[1740121022646,0.30522235,655.26,654.08,2.1326592]
[1740121022843,0.30522235,655.26,654.05,2.97582588]
[1740121022844,0.30522235,655.26,654.09,2.1326592]
[1740121023047,0.30522235,655.26,654.1,2.1326592]
[1740121023243,0.30522235,655.26,654.11,2.1326592]
[1740121023445,0.30522235,655.26,654.12,2.1326592]
[1740121023744,0.30522235,655.26,654.13,2.1326592]
[1740121023942,0.30522235,655.26,654.14,2.1326592]
[1740121024147,0.30522235,655.26,654.15,2.1326592]
[1740121024348,0.30522235,655.26,654.16,2.1326592]
[1740121024546,0.30522235,655.26,654.17,2.1326592]
[1740121024850,0.30522235,655.26,654.18,2.1326592]
[1740121025050,0.30522235,655.26,654.19,2.1326592]
[1740121025253,0.30522235,655.26,654.2,2.1326592]
[1740121025447,0.30522235,655.26,654.21,2.1326592]
[1740121025645,0.30522235,655.26,654.22,2.1326592]
[1740121025947,0.30522235,655.26,654.23,2.1326592]
[1740121026146,0.30522235,655.26,654.24,2.1326592]
[1740121026450,0.30522235,655.26,654.2,2.97582588]
[1740121026451,0.30522235,655.26,654.25,2.1326592]
[1740121026647,0.30522235,655.26,654.25,2.97582588]
[1740121028154,0.30522235,655.26,654.0,1.13987848]
[1740121028354,0.30522235,655.26,654.01,2.1335548]
[1740121028555,0.30522235,655.26,654.02,2.1335548]
[1740121028751,0.30522235,655.26,654.03,2.1335548]
[1740121028955,0.30522235,655.26,654.04,5.11003002]
[1740121029151,0.30522235,655.26,654.05,2.1335548]
[1740121029357,0.30522235,655.26,654.06,2.1335548]
[1740121029556,0.30522235,655.26,654.07,2.1335548]
[1740121029754,0.30522235,655.26,654.08,2.1335548]
[1740121029959,0.30522235,655.26,654.09,2.1335548]
[1740121030254,0.30522235,655.26,654.1,2.1335548]
[1740121030459,0.30522235,655.26,654.11,2.1335548]
[1740121030658,0.30522235,655.26,654.12,2.1335548]
[1740121030854,0.30522235,655.26,654.13,2.1329039]
[1740121031059,0.30522235,655.26,654.11,2.97647522]
[1740121031255,0.30522235,655.26,654.12,2.13293185]
[1740121031455,0.30522235,655.26,654.13,2.13287389]
[1740121031659,0.30522235,655.26,654.11,2.97647522]
[1740121031857,0.30522235,655.26,654.12,5.1093491]
[1740121032062,0.30522235,655.26,654.12,2.97647522]
[1740121033160,0.30522235,655.26,654.13,2.97647522]
[1740121034557,0.30522235,655.26,654.14,2.97647522]
[1740121036169,0.30522235,655.26,653.94,1.13987848]
[1740121036368,0.30522235,655.26,653.95,2.13290173]
[1740121036569,0.30522235,655.26,653.96,5.10884712]
[1740121036870,0.30522235,655.26,653.97,2.13290173]
[1740121037169,0.30522235,655.26,653.98,2.13290173]
[1740121037369,0.30522235,655.26,653.99,2.13290173]
[1740121037563,0.30522235,655.26,654.0,2.13290173]
[1740121037766,0.30522235,655.26,654.01,2.13290173]
[1740121037969,0.30522235,655.26,654.02,2.13290173]
[1740121038263,0.30522235,655.26,654.03,5.10884712]
[1740121038466,0.30522235,655.26,654.04,2.13290173]
[1740121038663,0.30522235,655.26,654.05,2.13290173]
[1740121038863,0.30522235,655.26,654.06,2.13290173]
[1740121039064,0.30522235,655.26,654.07,2.13290173]
[1740121039264,0.30522235,655.26,654.08,2.13290173]
[1740121039470,0.30522235,655.26,654.09,2.13290173]
[1740121039766,0.30522235,655.26,654.1,2.13290173]
[1740121039965,0.30522235,655.26,654.11,2.13290173]
[1740121040168,0.30522235,655.26,654.12,2.13290173]
[1740121040468,0.30522235,655.26,654.13,2.13290173]
[1740121040664,0.30522235,655.26,654.14,2.13290173]
[1740121040869,0.30522235,655.26,654.15,2.13290173]
[1740121041064,0.30522235,655.26,654.02,1.13987848]
[1740121041065,0.30522235,655.26,654.16,5.10884712]
[1740121041367,0.30522235,655.26,654.17,2.13290173]
[1740121041563,0.30522235,655.26,654.18,2.13290173]
[1740121041768,0.30522235,655.26,654.19,2.13290173]
[1740121041970,0.30522235,655.26,654.16,2.97594539]
[1740121041971,0.30522235,655.26,654.2,2.13290173]
[1740121042166,0.30522235,655.26,654.21,2.13290173]
[1740121042366,0.30522235,655.26,654.22,2.13290173]
[1740121042567,0.30522235,655.26,654.23,5.10878227]
[1740121042770,0.30522235,655.26,654.24,2.13283688]
[1740121042972,0.30522235,655.26,654.23,2.97594539]
[1740121044173,0.30522235,655.26,654.02,1.13987848]
[1740121046275,0.30522235,655.26,653.87,1.13987848]
[1740121046477,0.30522235,655.26,653.88,2.13449711]
[1740121046772,0.30522235,655.26,653.89,2.13449711]
[1740121046977,0.30522235,655.26,653.9,2.13449711]
[1740121047277,0.30522235,655.26,653.91,2.13433996]
[1740121047476,0.30522235,655.26,653.89,2.97797768]
[1740121047677,0.30522235,655.26,653.9,2.13446852]
[1740121047876,0.30522235,655.26,653.89,2.97797768]
[1740121048076,0.30522235,655.26,653.9,2.13454879]
[1740121048278,0.30522235,655.26,653.91,2.13454879]
[1740121048476,0.30522235,655.26,653.89,2.97797768]
[1740121048674,0.30522235,655.26,653.9,2.97797768]
[1740121050678,0.30522235,655.26,653.87,1.13987848]
[1740121051378,0.30522235,655.26,653.75,1.13987848]
[1740121051579,0.30522235,655.26,653.76,5.11485965]
[1740121051778,0.30522235,655.26,653.77,2.13546529]
[1740121052078,1.268,655.25,653.78,2.13546529]
[1740121052278,0.30523632,655.23,653.79,2.13546529]
[1740121052478,0.30523632,655.23,653.8,2.13546529]
[1740121052675,0.30523632,655.23,653.81,2.13546529]
[1740121052874,0.30523632,655.23,653.82,2.13546529]
[1740121053076,0.30523632,655.23,653.83,2.13546529]
[1740121053273,0.30523632,655.23,653.84,2.13546529]
[1740121053475,0.30523632,655.23,653.83,2.97939436]
[1740121054778,0.30523632,655.23,653.84,2.97939436]
[1740121055778,0.30523632,655.23,653.85,2.1357215]
[1740121055977,0.30523632,655.23,653.84,2.97939436]
[1740121055978,0.30523632,655.23,653.86,2.1357215]
[1740121056178,0.30523632,655.23,653.87,2.1357215]
[1740121056378,0.30523632,655.23,653.88,5.11511586]
[1740121056573,0.30523632,655.23,653.89,2.1357215]
[1740121056778,0.30523632,655.23,653.9,2.1357215]
[1740121056973,0.30523632,655.23,653.91,2.1357215]
[1740121057178,0.30523632,655.23,653.92,2.1357215]
[1740121057375,0.30523632,655.23,653.93,2.1357215]
[1740121057580,0.30523632,655.23,653.94,2.1357215]
[1740121057776,0.30523632,655.23,653.95,2.1357215]
[1740121057980,0.30523632,655.23,653.96,2.1357215]
[1740121058182,0.30523632,655.23,653.97,2.1357215]
[1740121058381,0.30523632,655.23,653.98,2.1357215]
[1740121058581,0.30523632,655.23,653.94,2.97939436]
[1740121058777,0.30523632,655.23,653.95,2.13659539]
[1740121058986,0.30523632,655.23,653.96,5.11598975]
[1740121059177,0.30523632,655.23,653.96,2.97939436]
[1740121059682,0.30523632,655.23,653.97,2.13641626]
[1740121059883,0.30523632,655.23,653.98,2.13641626]
[1740121060083,0.30523632,655.23,653.99,5.11581062]
[1740121060283,0.30523632,655.23,654.0,2.13641626]
[1740121060578,0.30523632,655.23,654.01,2.13641626]
[1740121060782,0.30523632,655.23,654.02,2.13641626]
[1740121060983,0.30523632,655.23,654.03,2.13641626]
[1740121061180,0.30523632,655.23,654.04,2.13641626]
[1740121061378,0.30523632,655.23,654.05,2.13641626]
[1740121061579,0.30523632,655.23,654.06,2.13641626]
[1740121061784,0.30523632,655.23,654.07,2.13641626]
[1740121061983,0.30523632,655.23,654.08,2.13641626]
[1740121062183,0.30523632,655.23,654.05,2.97939436]
[1740121062384,0.30523632,655.23,654.06,2.13599197]
[1740121062584,0.30523632,655.23,654.07,2.13599197]
[1740121062784,0.30523632,655.23,654.05,2.97939436]
[1740121062988,0.30523632,655.23,654.06,2.1359579]
[1740121063185,0.30523632,655.23,654.07,2.1359579]
[1740121063380,0.30523632,655.23,654.08,2.1359579]
[1740121063586,0.30523632,655.23,654.09,2.1359579]
[1740121063786,0.30523632,655.23,654.1,2.1359579]
[1740121063983,0.30523632,655.23,654.11,2.1359579]
[1740121064184,0.30523632,655.23,654.12,2.1359579]
[1740121064487,0.30523632,655.23,654.13,2.1359579]
[1740121064689,0.30523632,655.23,654.14,2.1359579]
[1740121064886,0.30523632,655.23,654.15,2.1359579]
[1740121065083,0.30523632,655.23,654.16,2.1359579]
[1740121065287,0.30523632,655.23,654.17,2.1359579]
[1740121065582,0.30523632,655.23,654.18,2.1359579]
[1740121065787,0.30523632,655.23,654.19,2.1359579]
[1740121065988,1.14842678,655.21,654.2,5.11535226]
[1740121066189,0.30525496,655.19,654.21,2.1359579]
[1740121066391,0.30525496,655.19,654.2,2.97939436]
[1740121067187,0.30525496,655.19,653.97,1.13987848]
[1740121067393,0.30525496,655.19,653.98,2.13553874]
[1740121067592,0.30525496,655.19,653.99,2.13553874]
[1740121067790,0.30525496,655.19,654.0,2.13553874]
[1740121068088,0.30525496,655.19,654.01,2.13553874]
[1740121068289,0.30525496,655.19,654.02,2.13553874]
[1740121068489,0.30525496,655.19,654.03,2.13553874]
[1740121068696,0.30525496,655.19,654.04,2.13553874]
[1740121068994,0.30525496,655.19,654.05,2.13553874]
[1740121069295,0.30525496,655.19,654.06,2.13553874]
[1740121069490,0.30525496,655.19,654.07,2.13553874]
[1740121069695,0.30525496,655.19,654.0,2.97967099]
[1740121069897,0.30525496,655.19,654.08,2.97967099]
[1740121070095,0.30525496,655.19,654.09,2.13609646]
[1740121070296,0.30525496,655.19,654.1,2.13609646]
[1740121070496,0.30525496,655.19,654.08,2.97967099]
[1740121070699,0.30525496,655.19,654.09,2.13643599]
[1740121070998,0.30525496,655.19,654.1,2.13643599]
[1740121071195,0.30525496,655.19,654.11,2.136366]
[1740121071392,0.30525496,655.19,654.08,2.97967099]
[1740121071695,0.30525496,655.19,654.09,2.13646178]
[1740121071898,0.30525496,655.19,654.1,2.13646178]
[1740121072098,0.30525496,655.19,654.11,2.13646178]
[1740121072398,0.30525496,655.19,654.09,2.97967099]
[1740121072598,0.30525496,655.19,654.1,2.13658276]
[1740121072799,0.30525496,655.19,654.11,2.13658276]
[1740121072998,0.30525496,655.19,654.12,2.13658276]
[1740121073199,0.30525496,655.19,654.09,2.97967099]
[1740121073394,0.30525496,655.19,654.1,5.11619885]
[1740121073598,0.30525496,655.19,654.1,2.97967099]
[1740121075198,0.30525496,655.19,653.91,1.13987848]
[1740121075399,0.30525496,655.19,653.92,2.13704863]
[1740121075599,0.30525496,655.19,653.91,1.13987848]
[1740121075600,0.30525496,655.19,653.93,5.11880831]
[1740121075798,0.30525496,655.19,653.94,2.13704863]
[1740121075995,0.30525496,655.19,653.95,2.13704863]
[1740121076299,0.30525496,655.19,653.96,2.13704863]
[1740121076500,0.30525496,655.19,653.97,2.13704863]
[1740121076697,0.30525496,655.19,653.93,2.98175968]
[1740121076698,0.30525496,655.19,653.98,2.13704863]
[1740121077004,0.30525496,655.19,653.93,2.98175968]
[1740121077197,0.30525496,655.19,653.99,2.98175968]
[1740121079001,0.30525496,655.19,653.9,1.13987848]
[1740121079200,0.30525496,655.19,653.91,2.13768102]
[1740121079398,0.30525496,655.19,653.92,2.13768102]
[1740121079601,0.30525496,655.19,653.93,2.13768102]
[1740121079798,0.30525496,655.19,653.94,2.13768102]
[1740121080099,0.30525496,655.19,653.95,2.13768102]
[1740121080305,0.30525496,655.19,653.96,2.13768102]
[1740121080599,0.30525496,655.19,653.92,2.98221337]
[1740121081904,0.30525496,655.19,653.93,2.98221337]
[1740121082707,0.30525496,655.19,653.94,2.13756841]
[1740121082905,0.30525496,655.19,653.95,2.13756841]
[1740121083102,0.30525496,655.19,653.93,2.98221337]
[1740121083301,0.30525496,655.19,653.94,2.13770577]
[1740121083502,0.30525496,655.19,653.95,2.13770577]
[1740121083707,0.30525496,655.19,653.95,2.98221337]
[1740121084412,0.30525496,655.19,653.96,2.13771566]
[1740121084613,0.30525496,655.19,653.95,2.98221337]
[1740121084813,0.30525496,655.19,653.96,2.13769016]
[1740121085013,0.30525496,655.19,653.97,2.13769016]
[1740121085213,0.30525496,655.19,653.95,2.98221337]
[1740121085412,0.30525496,655.19,653.98,2.98221337]
[1740121086808,0.30525496,655.19,653.84,1.13987848]
[1740121087009,0.30525496,655.19,653.85,5.12176027]
[1740121087212,0.30525496,655.19,653.86,2.13843665]
[1740121087508,0.30525496,655.19,653.87,2.13843665]
[1740121087711,0.30525496,655.19,653.88,2.13843665]
[1740121087913,0.30525496,655.19,653.85,2.98332362]
[1740121088318,0.30525496,655.19,653.86,5.12159632]
[1740121088515,0.30525496,655.19,653.87,2.1382727]
[1740121088710,0.30525496,655.19,653.88,2.1382727]
[1740121088910,0.30525496,655.19,653.89,2.1382727]
[1740121089109,0.30525496,655.19,653.86,2.98332362]
[1740121089110,1.45368174,655.19,653.86,2.98332362]
[1740121089311,1.45368174,655.19,653.87,2.13813896]
[1740121089516,1.45368174,655.19,653.88,2.13813896]
[1740121089714,1.45368174,655.19,653.87,2.98332362]
[1740121091417,1.45368174,655.19,653.74,1.13987848]
[1740121091618,0.30525496,655.19,653.75,2.13704992]
[1740121091811,0.30525496,655.19,653.76,2.13704992]
[1740121092013,0.30525496,655.19,653.77,2.13704992]
[1740121092318,0.30525496,655.19,653.78,2.13704992]
[1740121092518,0.30525496,655.19,653.79,2.13704992]
[1740121092718,0.30525496,655.19,653.8,2.13704992]
[1740121092918,0.30525496,655.19,653.81,2.13704992]
[1740121093218,0.30525496,655.19,653.76,2.98140933]
[1740121093417,0.30525496,655.19,653.77,2.13698778]
[1740121093617,0.30525496,655.19,653.78,2.13698778]
[1740121093818,0.30525496,655.19,653.79,2.13698778]
[1740121094014,0.30525496,655.19,653.8,2.13698778]
[1740121094211,0.30525496,655.19,653.81,2.13698778]
[1740121094416,0.30525496,655.19,653.78,2.98140933]
[1740121094614,0.30525496,655.19,653.79,2.13630364]
[1740121094813,0.30525496,655.19,653.8,2.13630364]
[1740121095015,0.30525496,655.19,653.81,2.13630364]
[1740121095211,0.30525496,655.19,653.82,2.13630364]
[1740121095415,0.30525496,655.19,653.8,2.98140933]
[1740121095416,0.30525496,655.19,653.83,2.13630364]
[1740121095615,0.30525496,655.19,653.84,2.13630364]
[1740121095814,0.30525496,655.19,653.85,2.13630364]
[1740121096012,0.30525496,655.19,653.86,2.13630364]
[1740121096217,0.30525496,655.19,653.87,2.13630364]
[1740121096413,0.30525496,655.19,653.88,2.13630364]
[1740121096619,0.30525496,655.19,653.89,2.13630364]
[1740121096919,0.30525496,655.19,653.9,2.13630364]
[1740121097119,0.30525496,655.19,653.91,2.13630364]
[1740121097414,0.30525496,655.19,653.92,2.13630364]
[1740121097619,0.30525496,655.19,653.93,2.13630364]
[1740121097919,1.14842678,655.09,653.94,2.13630364]
[1740121098220,0.30531088,655.07,653.95,2.13630364]
[1740121098514,0.30531088,655.07,653.96,2.13630364]
[1740121098717,0.30531088,655.07,653.91,2.98140933]
[1740121098918,0.30531088,655.07,653.92,5.11664087]
[1740121099118,0.30531088,655.07,653.93,2.13523154]
[1740121099311,0.30531088,655.07,653.92,2.98140933]
[1740121099513,0.30531088,655.07,653.93,2.13543635]
[1740121099715,0.30531088,655.07,653.92,2.98140933]
[1740121099914,0.30531088,655.07,653.93,2.13517344]
[1740121100116,0.30531088,655.07,653.92,2.98140933]
[1740121100720,0.30531088,655.07,653.93,2.98140933]
[1740121101620,0.30531088,655.07,653.94,2.98140933]
[1740121102720,0.30531088,655.07,653.57,1.13987848]
[1740121102915,0.30531088,655.07,653.58,2.13468809]
[1740121103221,0.30531088,655.07,653.59,5.1128878]
[1740121103420,0.30531088,655.07,653.6,2.13468809]
[1740121103621,0.30531088,655.07,653.61,2.13468809]
[1740121103921,0.30531088,655.07,653.62,2.13468809]
[1740121104116,0.30531088,655.07,653.63,2.13468809]
[1740121104318,0.30531088,655.07,653.64,2.13468809]
[1740121104514,0.30531088,655.07,653.65,2.13468809]
[1740121104719,0.30531088,655.07,653.63,2.97819971]
[1740121104720,0.30531088,655.07,653.66,2.13468809]
[1740121105020,0.30531088,655.07,653.67,2.13468809]
[1740121105222,0.30531088,655.07,653.68,2.13468809]
[1740121105418,0.30531088,655.07,653.69,2.13468809]
[1740121105618,0.30531088,655.07,653.7,2.13468809]
[1740121105820,0.30531088,655.07,653.71,2.13468809]
[1740121106016,0.30531088,655.07,653.72,2.13468809]
[1740121106217,0.30531088,655.07,653.73,2.13468809]
[1740121106421,0.30531088,655.07,653.74,2.13468809]
[1740121106623,0.30531088,655.07,653.75,2.13468809]
[1740121106916,0.30531088,655.07,653.76,2.13468809]
[1740121107121,0.30531088,655.07,653.77,2.13468809]
[1740121107321,0.30531088,655.07,653.78,2.13468809]
[1740121107518,0.30531088,655.07,653.79,2.13468809]
[1740121107822,0.30531088,655.07,653.8,2.13468809]
[1740121108020,0.30531088,655.07,653.81,2.13468809]
[1740121108221,0.30531088,655.07,653.82,2.13468809]
[1740121108415,0.30531088,655.07,653.78,2.97819971]
[1740121108618,0.30531088,655.07,653.79,2.13378111]
[1740121108819,0.30531088,655.07,653.8,2.13378111]
[1740121109116,0.30531088,655.07,653.81,2.13378111]
[1740121109319,0.30531088,655.07,653.82,2.13378111]
[1740121109519,0.30531088,655.07,653.83,2.13378111]
[1740121109721,0.30531088,655.07,653.84,2.13378111]
[1740121109920,0.30531088,655.07,653.85,2.13378111]
[1740121110120,0.30531088,655.07,653.86,2.13378111]
[1740121110418,0.30531088,655.07,653.82,2.97819971]
[1740121110618,0.30531088,655.07,653.83,2.13354596]
[1740121110820,0.30531088,655.07,653.84,2.13354596]
[1740121111017,0.30531088,655.07,653.85,2.13354596]
[1740121111218,0.30531088,655.07,653.86,2.13354596]
[1740121111424,0.30531088,655.07,653.85,2.97819971]
[1740121112524,0.30531088,655.07,653.6,1.13987848]
[1740121112724,0.30531088,655.07,653.61,2.13289628]
[1740121112918,0.30531088,655.07,653.62,5.10829588]
[1740121113119,0.30531088,655.07,653.63,2.13289628]
[1740121113422,0.30531088,655.07,653.64,2.13289628]
[1740121113623,0.30531088,655.07,653.65,2.13289628]
[1740121113817,0.30531088,655.07,653.66,2.13289628]
[1740121114021,0.30531088,655.07,653.67,2.13289628]
[1740121114221,0.30531088,655.07,653.68,2.13289628]
[1740121114523,0.30531088,655.07,653.62,2.9753996]
[1740121114524,0.30531088,655.07,653.69,2.13289628]
[1740121114725,0.30531088,655.07,653.7,2.13289628]
[1740121114921,0.30531088,655.07,653.71,2.13289628]
[1740121115121,0.30531088,655.07,653.72,2.13289628]
[1740121115317,0.30531088,655.07,653.73,2.13289628]
[1740121115521,0.30531088,655.07,653.74,2.13289628]
[1740121115721,0.30531088,655.07,653.75,2.13289628]
[1740121115918,0.30531088,655.07,653.76,2.13289628]
[1740121116223,0.30531088,655.07,653.77,2.13289628]
[1740121116418,0.30531088,655.07,653.78,2.13289628]
[1740121116620,0.30531088,655.07,653.79,2.13289628]
[1740121116821,0.30531088,655.07,653.8,2.13289628]
[1740121117025,0.30531088,655.07,653.81,2.13289628]
[1740121117217,0.30531088,655.07,653.75,2.9753996]
[1740121117218,0.30531088,655.07,653.82,2.13289628]
[1740121117420,0.30531088,655.07,653.83,2.13289628]
[1740121117622,0.30531088,655.07,653.84,2.13289628]
[1740121117623,1.45373766,655.07,653.84,2.13289628]
[1740121117821,1.45373766,655.07,653.85,2.13289628]
[1740121118019,1.45373766,655.07,653.86,2.13289628]
[1740121118222,1.45373766,655.07,653.83,2.9753996]
[1740121118417,1.45373766,655.07,653.84,2.13274996]
[1740121118623,1.45373766,655.07,653.85,2.13274996]
[1740121118820,1.45373766,655.07,653.86,2.13274996]
[1740121119018,1.45373766,655.07,653.85,2.9753996]
[1740121119218,1.45373766,655.07,653.86,2.13275586]
[1740121119422,1.45373766,655.07,653.87,2.13275586]
[1740121119625,1.45373766,655.07,653.88,2.13275586]
[1740121119822,1.45373766,655.07,653.89,2.13275586]
[1740121120018,1.45373766,655.07,653.9,2.13275586]
[1740121120323,2.76673766,655.07,653.91,2.13275586]
[1740121120526,1.14842678,655.04,653.92,2.13275586]
[1740121120721,0.30533418,655.02,653.93,2.13275586]
[1740121120920,0.30533418,655.02,653.94,2.13271632]
[1740121121118,0.30533418,655.02,653.95,2.13269622]
[1740121121319,0.30533418,655.02,653.96,2.13269622]
[1740121121522,0.30533418,655.02,653.97,2.13269622]
[1740121121722,0.30533418,655.02,653.98,2.13269622]
[1740121121922,0.30533418,655.02,653.99,2.13269622]
[1740121122125,0.30533418,655.02,654.0,5.10809582]
[1740121122322,0.30533418,655.02,654.0,2.9753996]
[1740121123226,1.14842678,654.96,654.0,2.9753996]
[1740121123426,0.30536682,654.95,654.0,2.9753996]
[1740121123626,0.30536682,654.95,653.79,1.13987848]
[1740121124326,0.30536682,654.95,653.8,2.9759973]
[1740121125526,0.30536682,654.95,653.81,2.9759973]
[1740121127030,0.30536682,654.95,653.71,1.13987848]
[1740121128932,0.30536682,654.95,653.58,1.13987848]
[1740121134339,0.30536682,654.95,652.86,1.37716616]
[1740121134340,0.30536682,654.95,653.6,1.13987848]
[1740121135441,0.30536682,654.95,653.61,2.13687866]
[1740121135734,0.30536682,654.95,653.6,1.13987848]
[1740121135735,0.30536682,654.95,653.62,2.13687866]
[1740121135940,0.30536682,654.95,653.6,1.13987848]
[1740121136440,0.30536682,654.95,653.61,2.98042622]
[1740121137345,0.30536682,654.95,653.62,1.13987848]
[1740121141745,0.30536682,654.95,653.63,2.13728932]
[1740121141947,0.30536682,654.95,653.64,2.13728932]
[1740121142143,0.30536682,654.95,653.65,2.13728932]
[1740121142339,0.30536682,654.95,653.66,2.13728932]